fUST/lending_fUST_20251229
["ID","MTS","AMOUNT","RATE_DAILY","PERIOD"]
[399981905,1766975438661,-500.0,0.00015346,2]
[399981906,1766975438670,-500.0,0.00015346,2]
[399981907,1766975438680,-500.0,0.00015346,2]
[399981908,1766975438689,-500.0,0.00015346,2]
[399981909,1766975438698,-500.0,0.00015346,2]
[399981910,1766975438707,-179.10711209,0.00015346,2]
[399981911,1766975438716,-500.0,0.00015346,2]
[399981912,1766975438725,-500.0,0.00015346,2]
[399981913,1766975438734,-500.0,0.00015346,2]
[399981914,1766975438743,-253.32450465,0.00015346,2]
[399981915,1766975438753,-500.0,0.00015346,2]
[399981916,1766975438762,-500.0,0.00015346,2]
[399981917,1766975438771,-2478.62329452,0.00015347,2]
[399981918,1766975438780,-1672.84903825,0.00015553,2]
[399981919,1766975438791,-2591.77618763,0.00015553,2]
[399981920,1766975438800,-261.04658223,0.00015553,2]
[399981921,1766975438809,-934.88165068,0.00015645,7]
[399981922,1766975438819,-151.0,0.00015646,2]
[399981923,1766975438829,-151.0,0.00015646,2]
[399981924,1766975438838,-504.655559,0.00015646,2]
[399981925,1766975438847,-500.0,0.00015646,2]
[399981926,1766975438857,-500.0,0.00015646,2]
[399981927,1766975438866,-402.62351347,0.00015646,2]
[399981928,1766975438875,-500.0,0.00015646,2]
[399981929,1766975438886,-500.0,0.00015646,2]
[399981930,1766975438895,-500.0,0.00015646,2]
[399981931,1766975438904,-500.0,0.00015646,2]
[399981932,1766975438914,-500.0,0.00015646,2]
[399981933,1766975438927,-2316.51800286,0.00015647,2]
[399981934,1766975438936,-151.0,0.00015647,2]
[399981935,1766975438946,-181366.06774307,0.00015647,2]
[399981936,1766975438962,-151.0,0.00015647,2]
[399981937,1766975438972,-401.71502829,0.00015647,2]
[399981970,1766975440752,-3e-08,0.00015647,2]
[399981972,1766975440763,-14144.99999995,0.00015647,2]
[399981975,1766975440774,-1556.18249021,0.00015647,2]
[399982328,1766975444822,-14050.4687547,0.00015647,2]
[399982329,1766975444833,-4194.8486572,0.00015647,2]
[399982333,1766975446546,-276.79793899,0.00015647,2]
[399982334,1766975446557,-701.83313898,0.00015647,2]
[399984595,1766976275776,162.94803602,0.000287,120]
[399984664,1766976632434,-401.15789213,0.00013273,2]
[399984680,1766976638623,-107.82880651,0.00013273,2]
[399984681,1766976638633,-505.6632544,0.00013273,2]
[399984682,1766976638643,-167.32967704,0.00013273,2]
[399984683,1766976638653,-503.80963258,0.00013273,2]
[399984684,1766976638662,-150.0,0.00013273,2]
[399984685,1766976638672,-608.0,0.00013273,2]
[399984687,1766976638681,-300.0,0.00013631,2]
[399984688,1766976638690,-1028.0,0.00013631,2]
[399984689,1766976638699,-273.29541236,0.00013632,2]
[399984690,1766976638708,-312.33761413,0.00013632,2]
[399984691,1766976638717,-737.37252818,0.00013632,2]
[399984692,1766976638726,-1310.88449454,0.00013632,2]
[399984693,1766976638736,-418.92897056,0.00013699,2]
[399984694,1766976638745,-503.37360108,0.00013699,2]
[399984695,1766976638755,-205.6135463,0.00013824,2]
[399984696,1766976638765,-1200.0,0.00014349,2]
[399984697,1766976638775,-420.0,0.00014939,2]
[399984698,1766976638785,-177.0,0.00015273,2]
[399984699,1766976638800,-242.12301246,0.00015499,2]
[399984700,1766976638809,-500.0,0.00015499,2]
[399984701,1766976638819,-500.0,0.00015499,2]
[399984702,1766976638827,-500.0,0.00015499,2]
[399984703,1766976638839,-424.87770463,0.00015499,2]
[399984704,1766976638848,-500.0,0.00015499,2]
[399984705,1766976638859,-273.6435488,0.00015499,2]
[399984706,1766976638868,-500.0,0.00015499,2]
[399984707,1766976638878,-500.0,0.00015499,2]
[399984708,1766976638887,-500.0,0.00015499,2]
[399984709,1766976638897,-500.0,0.00015499,2]
[399984710,1766976638916,-416.19437708,0.00015499,2]
[399984711,1766976638927,-500.0,0.00015499,2]
[399984712,1766976638938,-500.0,0.00015499,2]
[399984713,1766976638948,-500.0,0.00015499,2]
[399984714,1766976638958,-500.0,0.00015499,2]
[399984715,1766976638968,-400.0,0.00015499,2]
[399984716,1766976638978,-500.0,0.00015499,2]
[399984717,1766976638988,-500.0,0.00015499,2]
[399984718,1766976638998,-500.0,0.00015499,2]
[399984719,1766976639009,-500.0,0.00015499,2]
[399984720,1766976639018,-500.0,0.00015499,2]
[399984721,1766976639029,-500.0,0.00015499,2]
[399984722,1766976639038,-500.0,0.00015499,2]
[399984723,1766976639048,-500.0,0.00015499,2]
[399984724,1766976639057,-376.1809797,0.000155,2]
[399984725,1766976639067,-376.1809797,0.000155,2]
[399984726,1766976639077,-500.0,0.000155,2]
[399984727,1766976639087,-307.80528048,0.000155,2]
[399984728,1766976639101,-68.37569922,0.000155,2]
[399984729,1766976639111,-376.1809797,0.000155,2]
[399984730,1766976639120,-151.0,0.00015529,2]
[399984731,1766976639130,-161.17859989,0.00015529,2]
[399984732,1766976639140,-257.39953178,0.00015529,2]
[399984733,1766976639150,-1654.84518941,0.00015529,2]
[399984734,1766976639194,-575.47011659,0.00015529,2]
[399984735,1766976639205,-392.25439957,0.00015529,2]
[399984743,1766976640689,-107.74560043,0.00015529,2]
[399984744,1766976640698,-337.77939957,0.00015529,2]
[399984745,1766976640797,-162.22060043,0.00015529,2]
[399984746,1766976640809,-500.0,0.00015529,2]
[399984747,1766976640821,-151.0,0.00015529,2]
[399984748,1766976640831,-500.0,0.00015529,2]
[399984749,1766976640841,-500.0,0.00015529,2]
[399984750,1766976640852,-151.0,0.00015529,2]
[399984751,1766976640861,-500.0,0.00015529,2]
[399984752,1766976640874,-151.0,0.00015529,2]
[399984753,1766976640884,-500.0,0.00015529,2]
[399984754,1766976640895,-151.0,0.00015529,2]
[399984755,1766976640904,-500.0,0.00015529,2]
[399984756,1766976640916,-151.0,0.00015529,2]
[399984757,1766976640926,-500.0,0.00015529,2]
[399984758,1766976640935,-151.0,0.00015529,2]
[399984759,1766976640945,-183.98914486,0.00015529,2]
[399984760,1766976640955,-500.0,0.00015529,2]
[399984761,1766976640965,-151.0,0.00015529,2]
[399984762,1766976640974,-474.81437392,0.00015529,2]
[399984763,1766976640984,-151.0,0.00015529,2]
[399984764,1766976640993,-151.0,0.00015529,2]
[399984766,1766976641003,-151.0,0.00015529,2]
[399984767,1766976641012,-250.0,0.00015529,2]
[399984769,1766976641022,-151.0,0.00015529,2]
[399984771,1766976641032,-250.0,0.00015529,2]
[399984772,1766976641042,-151.0,0.00015529,2]
[399984774,1766976641051,-250.0,0.00015529,2]
[399984776,1766976641061,-151.0,0.00015529,2]
[399984777,1766976641071,-249.72812108,0.00015529,2]
[399984778,1766976641080,-151.0,0.00015529,2]
[399984779,1766976641089,-151.0,0.00015529,2]
[399984780,1766976641099,-151.0,0.00015529,2]
[399984781,1766976641109,-151.0,0.00015529,2]
[399984782,1766976641120,-151.0,0.00015529,2]
[399984783,1766976641130,-151.0,0.00015529,2]
[399984784,1766976641140,-151.0,0.00015529,2]
[399984785,1766976641153,-151.0,0.00015529,2]
[399984786,1766976641163,-151.0,0.00015529,2]
[399984787,1766976641173,-151.0,0.00015529,2]
[399984788,1766976641182,-151.0,0.00015529,2]
[399984789,1766976641192,-151.0,0.00015529,2]
[399984790,1766976641202,-155.11860026,0.00015529,2]
[399984791,1766976641212,-151.0,0.00015529,2]
[399984792,1766976641222,-151.0,0.00015529,2]
[399984793,1766976641231,-151.0,0.00015529,2]
[399984794,1766976641241,-151.0,0.00015529,2]
[399984795,1766976641252,-151.0,0.00015529,2]
[399984796,1766976641262,-151.0,0.00015529,2]
[399984797,1766976641278,-151.0,0.00015529,2]
[399984798,1766976641293,-153.1576525,0.00015529,2]
[399984799,1766976641307,-461.67526834,0.00015529,2]
[399984800,1766976641320,-500.0,0.00015537,2]
[399984801,1766976641333,-500.0,0.00015537,2]
[399984802,1766976641347,-11.93973563,0.00015537,2]
[399984819,1766976645246,-376.1809797,0.000153,2]
[399984820,1766976645256,-500.0,0.00015499,2]
[399984821,1766976645266,-500.0,0.00015499,2]
[399984822,1766976645277,-500.0,0.00015499,2]
[399984823,1766976645288,-620.0,0.00015499,2]
[399984824,1766976645299,-500.0,0.00015499,2]
[399984825,1766976645311,-500.0,0.00015499,2]
[399984826,1766976645323,-500.0,0.00015499,2]
[399984827,1766976645334,-250.0,0.00015499,2]
[399984828,1766976645345,-500.0,0.00015499,2]
[399984829,1766976645355,-500.0,0.00015499,2]
[399984830,1766976645365,-500.0,0.00015499,2]
[399984831,1766976645375,-500.0,0.00015499,2]
[399984832,1766976645386,-500.0,0.00015499,2]
[399984833,1766976645398,-500.0,0.00015499,2]
[399984834,1766976645414,-500.0,0.00015499,2]
[399984835,1766976645424,-500.0,0.00015499,2]
[399984836,1766976645436,-500.0,0.00015499,2]
[399984837,1766976645447,-500.0,0.00015499,2]
[399984838,1766976645458,-500.0,0.00015499,2]
[399984839,1766976645471,-500.0,0.00015499,2]
[399984840,1766976645482,-500.0,0.00015499,2]
[399984841,1766976645493,-500.0,0.00015499,2]
[399984842,1766976645504,-500.0,0.00015499,2]
[399984843,1766976645516,-500.0,0.00015499,2]
[399984844,1766976645527,-500.0,0.00015499,2]
[399984845,1766976645538,-500.0,0.00015499,2]
[399984846,1766976645549,-500.0,0.00015499,2]
[399984847,1766976645561,-488.06026437,0.00015537,2]
[399984848,1766976645572,-500.0,0.00015537,2]
[399984849,1766976645583,-500.0,0.00015537,2]
[399984850,1766976645595,-500.0,0.00015537,2]
[399984851,1766976645611,-500.0,0.00015537,2]
[399984852,1766976645622,-500.0,0.00015537,2]
[399984853,1766976645633,-500.0,0.00015537,2]
[399984854,1766976645644,-500.0,0.00015537,2]
[399984855,1766976645655,-500.0,0.00015537,2]
[399984856,1766976645667,-500.0,0.00015537,2]
[399984857,1766976645678,-500.0,0.00015537,2]
[399984858,1766976645690,-500.0,0.00015537,2]
[399984859,1766976645700,-500.0,0.00015537,2]
[399984860,1766976645711,-500.0,0.00015537,2]
[399984861,1766976645722,-500.0,0.00015537,2]
[399984862,1766976645733,-500.0,0.00015537,2]
[399984863,1766976645744,-500.0,0.00015537,2]
[399984864,1766976645754,-572.01911435,0.00015537,2]
[399984865,1766976645765,-500.0,0.00015537,2]
[399984866,1766976645776,-424.70517962,0.00015537,2]
[399984867,1766976645787,-201.41014505,0.00015537,2]
[399984868,1766976645802,-576608.07964239,0.00015538,2]
[399984881,1766976646572,-500.0,0.00015499,2]
[399984882,1766976646584,-500.0,0.00015499,2]
[399984883,1766976646596,-362.41399471,0.00015499,2]
[399984884,1766976646608,-500.0,0.00015499,2]
[399984885,1766976646619,-500.0,0.00015499,2]
[399984886,1766976646631,-500.0,0.00015499,2]
[399984887,1766976646642,-500.0,0.00015499,2]
[399984888,1766976646653,-500.0,0.00015499,2]
[399984889,1766976646665,-500.0,0.00015499,2]
[399984890,1766976646676,-249.75695034,0.00015499,2]
[399984892,1766976686523,311.2770698,0.00028767,120]
[399984893,1766976739872,150.0,8.014e-05,2]
[399984894,1766976867414,150.0,7.6e-05,2]
[399984895,1766976867810,150.0,8.291e-05,2]
[399984896,1766976932741,150.0,7.367e-05,2]
[399984897,1766976933145,150.0,8.037e-05,2]
[399984898,1766977047088,449.09,0.00012329,2]
[399984899,1766977057547,374.24,0.00012329,2]
[399984900,1766977068051,607.24,0.00012329,2]
[399984903,1766977078507,506.03,0.00012329,2]
[399984904,1766977088902,421.69,0.00012329,2]
[399984906,1766977099330,351.41,0.00012329,2]
[399984907,1766977109795,292.84,0.00012329,2]
[399984908,1766977120191,244.04,0.00012329,2]
[399984909,1766977120872,-500.0,0.00013272,2]
[399984910,1766977120892,-139.71057525,0.00013272,2]
[399984911,1766977125284,-292.35378611,0.00013272,2]
[399984912,1766977126765,-67.93563864,0.00013272,2]
[399984913,1766977126787,-173.81628203,0.00013272,2]
[399984914,1766977128872,-237.99424405,0.00013272,2]
[399984915,1766977128897,-12.82084169,0.00013272,2]
[399984916,1766977130632,203.36,0.00012329,2]
[399984917,1766977134604,-181.42289427,0.00013272,2]
[399984918,1766977141033,169.47,0.00012329,2]
[399984919,1766977141063,-266.0,0.00013272,2]
[399984920,1766977143643,-283.92885599,0.00013271,2]
[399984921,1766977145756,-16.07114401,0.00013271,2]
[399984922,1766977145784,-39.75626404,0.00013272,2]
[399984923,1766977145807,-229.00744781,0.00013272,2]
[399984924,1766977151082,-150.0,0.00013271,2]
[399984925,1766977151105,-87.26708111,0.00013272,2]
[399984926,1766977151501,847.37,0.00012329,2]
[399984927,1766977153716,-183.72547108,0.00013272,2]
[399984928,1766977153740,-86.3540534,0.00013272,2]
[399984929,1766977158922,-410.02578511,0.00013272,2]
[399984930,1766977161419,-3.62016149,0.00013272,2]
[399984931,1766977161441,-418.24085241,0.00013272,2]
[399984932,1766977164204,-113.93441047,0.00013272,2]
[399984933,1766977164227,-45.83634248,0.00013272,2]
[399984934,1766977166686,-216.07114401,0.00013272,2]
[399984935,1766977187352,-462.27523028,0.00013173,2]
[399984936,1766977217351,-137.73351651,0.00013173,2]
[399984937,1766977217374,-262.69648349,0.00013173,2]
[399984938,1766977220249,2726.29923752,0.00013172,2]
[399984939,1766977220470,-237.30351651,0.00013173,2]
[399984940,1766977220491,-62.69648349,0.00013173,2]
[399984941,1766977225543,-181.07643522,0.00013173,2]
[399984942,1766977230116,-256.22708129,0.00013173,2]
[399984943,1766977230139,-58.52663215,0.00013173,2]
[399984944,1766977233816,-274.91623891,0.00013173,2]
[399984945,1766977234984,200.0,0.00027,120]
[399984946,1766977235398,200.0,0.000281,120]
[399984947,1766977236839,-157.65469064,0.00013173,2]
[399984948,1766977240872,-8.9024383,0.00013173,2]
[399984949,1766977240894,-225.76381284,0.00013173,2]
[399984950,1766977244784,-209.97959336,0.00013173,2]
[399984951,1766977247626,-64.2565938,0.00013173,2]
[399984952,1766977247652,-500.0,0.00013173,2]
[399984953,1766977247677,-80.59395093,0.00013173,2]
[399984954,1766977250097,-183.34865291,0.00013173,2]
[399984955,1766977253515,-207.60776585,0.00013173,2]
[399984956,1766977256231,-135.44963031,0.00013173,2]
[399984957,1766977256252,-62.21397816,0.00013173,2]
[399984958,1766977257780,-346.08360802,0.00013173,2]
[399984960,1766977485534,2385.51183283,0.00013168,2]
[399984962,1766977505046,152.57111232,0.00012998,2]
[399984963,1766977505103,161.38219738,0.00012998,2]
[399984964,1766977517269,-91.70241382,0.00013173,2]
[399984965,1766977517292,-355.36880805,0.00013173,2]
[399984967,1766977576974,246.01758477,0.00012997,2]
[399984969,1766977683934,168.74,8.991e-05,2]
[399984970,1766977684201,168.73,8.991e-05,2]
[399984971,1766977760851,2087.3228537,0.00013163,2]
[399984972,1766977818239,-124.63818939,0.00013173,2]
[399984973,1766977818263,-158.01910415,0.00013173,2]
[399984974,1766977822754,-294.29169865,0.00013173,2]
[399984978,1766977831560,-154.6891972,0.00013173,2]
[399984979,1766977831569,-150.0,0.00013197,2]
[399984981,1766977831579,-290.30443543,0.00013262,2]
[399984984,1766977831589,-300.0,0.00013262,2]
[399984985,1766977831598,-300.0,0.00013262,2]
[399984987,1766977831608,-138.70307323,0.00013262,2]
[399984990,1766977831626,-161.29692677,0.00013262,2]
[399984992,1766977831636,-300.0,0.00013262,2]
[399984994,1766977831646,-1200.0,0.00013262,2]
[399984997,1766977831657,-1200.0,0.00013263,2]
[399984999,1766977831666,-500.0,0.00013263,2]
[399985000,1766977831676,-500.0,0.00013263,2]
[399985002,1766977831685,-350.54969801,0.00013263,2]
[399985004,1766977831694,-500.0,0.00013263,2]
[399985006,1766977831703,-572.52268402,0.00013263,2]
[399985008,1766977831712,-500.0,0.00013263,2]
[399985010,1766977831722,-500.0,0.00013263,2]
[399985011,1766977831731,-500.0,0.00013263,2]
[399985013,1766977831741,-500.0,0.00013263,2]
[399985015,1766977831749,-500.0,0.00013263,2]
[399985017,1766977831758,-366.13989119,0.00013263,2]
[399985019,1766977831767,-500.0,0.00013263,2]
[399985021,1766977831777,-500.0,0.00013263,2]
[399985022,1766977831787,-500.0,0.00013263,2]
[399985023,1766977831800,-500.0,0.00013263,2]
[399985024,1766977831810,-500.0,0.00013263,2]
[399985025,1766977831819,-500.0,0.00013263,2]
[399985026,1766977831828,-295.99956489,0.00013263,2]
[399985121,1766977839931,-204.00043511,0.00013263,2]
[399985122,1766977839940,-500.0,0.00013263,2]
[399985123,1766977839951,-500.0,0.00013263,2]
[399985124,1766977839960,-500.0,0.00013263,2]
[399985125,1766977839969,-500.0,0.00013263,2]
[399985126,1766977839979,-500.0,0.00013263,2]
[399985127,1766977839988,-500.0,0.00013263,2]
[399985128,1766977839998,-500.0,0.00013263,2]
[399985129,1766977840007,-500.0,0.00013263,2]
[399985130,1766977840022,-500.0,0.00013263,2]
[399985131,1766977840031,-500.0,0.00013263,2]
[399985132,1766977840040,-500.0,0.00013263,2]
[399985133,1766977840050,-500.0,0.00013263,2]
[399985134,1766977840060,-500.0,0.00013263,2]
[399985135,1766977840069,-401.6223824,0.00013263,2]
[399985136,1766977840079,-500.0,0.00013263,2]
[399985137,1766977840091,-500.0,0.00013263,2]
[399985138,1766977840100,-249.08416823,0.00013263,2]
[399985139,1766977840109,-500.0,0.00013263,2]
[399985140,1766977840118,-110.56227341,0.00013263,2]
[399985141,1766977840130,-389.43772659,0.00013263,2]
[399985142,1766977840139,-500.0,0.00013263,2]
[399985143,1766977840149,-500.0,0.00013263,2]
[399985144,1766977840158,-500.0,0.00013263,2]
[399985145,1766977840167,-98.43277222,0.00013263,2]
[399985146,1766977840600,-3e-08,0.00013263,2]
[399985207,1766977844690,-401.56722775,0.00013263,2]
[399985208,1766977844701,-500.0,0.00013263,2]
[399985209,1766977844711,-500.0,0.00013263,2]
[399985210,1766977844722,-500.0,0.00013263,2]
[399985211,1766977844734,-500.0,0.00013263,2]
[399985212,1766977844745,-500.0,0.00013263,2]
[399985213,1766977844754,-500.0,0.00013263,2]
[399985214,1766977844764,-500.0,0.00013263,2]
[399985215,1766977844774,-500.0,0.00013263,2]
[399985216,1766977844783,-172.20853621,0.00013263,2]
[399985217,1766977844793,-500.0,0.00013263,2]
[399985218,1766977844802,-500.0,0.00013263,2]
[399985219,1766977844812,-500.0,0.00013263,2]
[399985220,1766977844821,-500.0,0.00013263,2]
[399985221,1766977844830,-500.0,0.00013263,2]
[399985222,1766977844840,-500.0,0.00013263,2]
[399985223,1766977844850,-500.0,0.00013263,2]
[399985224,1766977844860,-500.0,0.00013263,2]
[399985225,1766977844869,-500.0,0.00013263,2]
[399985226,1766977844878,-500.0,0.00013263,2]
[399985227,1766977844887,-500.0,0.00013263,2]
[399985228,1766977844897,-500.0,0.00013263,2]
[399985229,1766977844906,-500.0,0.00013263,2]
[399985230,1766977844915,-500.0,0.00013263,2]
[399985231,1766977844924,-500.0,0.00013263,2]
[399985232,1766977844933,-589.40153474,0.00013263,2]
[399985233,1766977844943,-500.0,0.00013263,2]
[399985234,1766977844952,-500.0,0.00013263,2]
[399985235,1766977844962,-500.0,0.00013263,2]
[399985236,1766977844971,-500.0,0.00013263,2]
[399985237,1766977844981,-500.0,0.00013263,2]
[399985238,1766977844990,-500.0,0.00013263,2]
[399985239,1766977845000,-500.0,0.00013263,2]
[399985240,1766977845010,-500.0,0.00013263,2]
[399985241,1766977845020,-500.0,0.00013263,2]
[399985242,1766977845029,-500.0,0.00013263,2]
[399985243,1766977845039,-500.0,0.00013263,2]
[399985244,1766977845049,-550.0,0.00013263,2]
[399985245,1766977845058,-500.0,0.00013263,2]
[399985246,1766977845068,-500.0,0.00013263,2]
[399985247,1766977845078,-500.0,0.00013263,2]
[399985248,1766977845087,-500.0,0.00013263,2]
[399985249,1766977845097,-500.0,0.00013263,2]
[399985250,1766977845106,-500.0,0.00013263,2]
[399985251,1766977845115,-500.0,0.00013263,2]
[399985252,1766977845125,-500.0,0.00013263,2]
[399985253,1766977845134,-500.0,0.00013263,2]
[399985254,1766977845143,-500.0,0.00013263,2]
[399985255,1766977845153,-500.0,0.00013263,2]
[399985257,1766977845163,-500.0,0.00013263,2]
[399985258,1766977845172,-500.0,0.00013263,2]
[399985259,1766977845181,-500.0,0.00013263,2]
[399985260,1766977845191,-500.0,0.00013263,2]
[399985261,1766977845204,-500.0,0.00013263,2]
[399985262,1766977845216,-500.0,0.00013263,2]
[399985263,1766977845227,-200.0,0.00013263,2]
[399985264,1766977845236,-2308.46747387,0.00013264,2]
[399985265,1766977845251,-10014.44952641,0.00013264,2]
[399985266,1766977845264,-4260.0,0.00013264,2]
[399985268,1766977845692,-725.61998,0.00013264,2]
[399985269,1766977845703,-35316.1585788,0.00013264,2]
[399985270,1766977845714,-52113.44236464,0.00013264,2]
[399985271,1766977845745,-85940.25692592,0.00013264,2]
[399985272,1766977845767,-999.90001,0.00013271,2]
[399985273,1766977845780,-606.25926554,0.00013273,2]
[399985274,1766977845790,-527.26012948,0.00013273,2]
[399985275,1766977845801,-500.0,0.00013273,2]
[399985276,1766977845810,-500.0,0.00013273,2]
[399985277,1766977845821,-561.12549314,0.00013273,2]
[399985278,1766977845831,-500.0,0.00013273,2]
[399985279,1766977845842,-500.0,0.00013273,2]
[399985280,1766977845852,-500.0,0.00013273,2]
[399985281,1766977845862,-500.0,0.00013273,2]
[399985282,1766977845871,-500.0,0.00013273,2]
[399985283,1766977845883,-500.0,0.00013273,2]
[399985284,1766977845893,-500.0,0.00013273,2]
[399985285,1766977845902,-500.0,0.00013273,2]
[399985286,1766977845911,-500.0,0.00013273,2]
[399985287,1766977845920,-391.50037595,0.00013273,2]
[399985288,1766977845930,-501.02339023,0.00013273,2]
[399985289,1766977845939,-500.0,0.00013273,2]
[399985290,1766977845949,-500.0,0.00013273,2]
[399985291,1766977845958,-500.0,0.00013273,2]
[399985292,1766977845969,-500.0,0.00013273,2]
[399985293,1766977845979,-500.0,0.00013273,2]
[399985294,1766977845988,-500.0,0.00013273,2]
[399985295,1766977845998,-500.0,0.00013273,2]
[399985296,1766977846007,-500.0,0.00013273,2]
[399985297,1766977846238,-502.44163346,0.00013273,2]
[399985298,1766977846247,-500.0,0.00013273,2]
[399985299,1766977846257,-500.0,0.00013273,2]
[399985300,1766977846266,-500.0,0.00013273,2]
[399985301,1766977846275,-500.0,0.00013273,2]
[399985302,1766977846285,-500.0,0.00013273,2]
[399985303,1766977846294,-500.0,0.00013273,2]
[399985304,1766977846305,-500.0,0.00013273,2]
[399985305,1766977846314,-500.0,0.00013273,2]
[399985306,1766977846324,-529.82013248,0.00013273,2]
[399985307,1766977846333,-500.0,0.00013273,2]
[399985308,1766977846342,-1604.7293361,0.00013277,2]
[399985309,1766977846351,-10110.99326252,0.0001354,2]
[399985310,1766977846361,-200.0,0.00013632,2]
[399985311,1766977846371,-300.0,0.00013673,2]
[399985312,1766977846382,-500.0,0.00013698,2]
[399985313,1766977846391,-192.79997823,0.00013698,2]
[399985314,1766977846401,-190.40044785,0.00013698,2]
[399985315,1766977846410,-550.82042527,0.00013698,2]
[399985316,1766977846420,-500.0,0.00013698,2]
[399985317,1766977846431,-500.0,0.00013698,2]
[399985318,1766977846442,-500.0,0.00013698,2]
[399985319,1766977846452,-500.0,0.00013698,2]
[399985320,1766977846462,-500.0,0.00013698,2]
[399985321,1766977846471,-500.0,0.00013698,2]
[399985322,1766977846481,-151.0,0.00013699,2]
[399985323,1766977846490,-501.70392909,0.00013699,2]
[399985324,1766977846500,-500.0,0.00013699,2]
[399985325,1766977846510,-500.0,0.00013699,2]
[399985326,1766977846525,-500.0,0.00013699,2]
[399985327,1766977846535,-500.0,0.00013699,2]
[399985328,1766977846546,-500.0,0.00013699,2]
[399985329,1766977846555,-500.0,0.00013699,2]
[399985330,1766977846564,-500.0,0.00013699,2]
[399985331,1766977846573,-500.0,0.00013699,2]
[399985332,1766977846583,-500.0,0.00013699,2]
[399985333,1766977846593,-500.0,0.00013699,2]
[399985334,1766977846604,-500.0,0.00013699,2]
[399985335,1766977846613,-500.0,0.00013699,2]
[399985336,1766977846623,-500.0,0.00013699,2]
[399985337,1766977846632,-500.0,0.00013699,2]
[399985338,1766977846642,-500.0,0.00013699,2]
[399985339,1766977846651,-500.0,0.00013699,2]
[399985340,1766977846661,-157.1509096,0.00013699,2]
[399985341,1766977846670,-158.35211909,0.00013699,2]
[399985342,1766977846679,-500.0,0.00013699,2]
[399985343,1766977846688,-500.0,0.00013699,2]
[399985344,1766977846697,-158.35210297,0.00013699,2]
[399985345,1766977846706,-500.0,0.00013699,2]
[399985346,1766977846716,-500.0,0.00013699,2]
[399985347,1766977846726,-500.0,0.00013699,2]
[399985348,1766977846739,-500.0,0.00013699,2]
[399985349,1766977846748,-160.11780673,0.00013699,2]
[399985350,1766977846757,-242.82214411,0.00013699,2]
[399985351,1766977846766,-587.18231384,0.00013699,2]
[399985352,1766977846775,-500.0,0.00013699,2]
[399985353,1766977846785,-237.79595319,0.00013699,2]
[399985354,1766977846794,-158.35213747,0.00013699,2]
[399985355,1766977846804,-158.35213553,0.00013699,2]
[399985356,1766977846812,-260.1936154,0.00013699,2]
[399985357,1766977846822,-188.38059638,0.00013699,2]
[399985358,1766977846831,-500.0,0.00013699,2]
[399985359,1766977846840,-158.35212659,0.00013699,2]
[399985360,1766977846853,-298.46227849,0.00013699,2]
[399985361,1766977846862,-500.0,0.00013699,2]
[399985362,1766977846872,-160.15386682,0.00013699,2]
[399985363,1766977846881,-160.29734461,0.00013699,2]
[399985364,1766977846892,-158.35213827,0.00013699,2]
[399985365,1766977846901,-500.0,0.00013699,2]
[399985366,1766977846911,-500.0,0.00013699,2]